fUSD/lending_fUSD_20250304
["ID","MTS","AMOUNT","RATE_DAILY","PERIOD"]
[355292179,1741057841609,-541.3,0.00012723,2]
[355292181,1741057841618,-1863.39,0.00012723,2]
[355292183,1741057841627,-964.96,0.00012723,2]
[355292185,1741057841636,-500.0,0.00012723,2]
[355292187,1741057841646,-2593.5,0.00012723,2]
[355292189,1741057841655,-1202.43,0.00012723,2]
[355292191,1741057841664,-588.17,0.00012723,2]
[355292193,1741057841674,-3109.66,0.00012723,2]
[355292195,1741057841683,-6272.73,0.00012723,2]
[355292197,1741057841692,-500.0,0.00012723,2]
[355292199,1741057841702,-502.28144388,0.00012723,2]
[355292201,1741057841711,-1809.34,0.00012723,2]
[355292203,1741057841721,-2614.76,0.00012723,2]
[355292205,1741057841730,-513.74213284,0.00012723,2]
[355292207,1741057841739,-1766.53,0.00012723,2]
[355292209,1741057841748,-501.34587272,0.00012723,2]
[355292211,1741057841758,-500.0,0.00012723,2]
[355292213,1741057841767,-3404.53,0.00012723,2]
[355292215,1741057841777,-973.19,0.00012723,2]
[355292217,1741057841786,-1268.26,0.00012723,2]
[355292219,1741057841795,-10948.44,0.00012723,2]
[355292221,1741057841804,-500.0,0.00012723,2]
[355292223,1741057841814,-1645.02,0.00012723,2]
[355292225,1741057841823,-2021.16,0.00012723,2]
[355292227,1741057841832,-1210.31,0.00012723,2]
[355292229,1741057841842,-3155.39,0.00012723,2]
[355292231,1741057841851,-784.48,0.00012723,2]
[355292233,1741057841860,-620.15237039,0.00012723,2]
[355292235,1741057841869,-7405.42,0.00012723,2]
[355292237,1741057841878,-500.0,0.00012723,2]
[355292239,1741057841887,-2402.68,0.00012723,2]
[355292241,1741057841896,-842.18,0.00012723,2]
[355292243,1741057841906,-1023.53,0.00012723,2]
[355292244,1741057841917,-2818.75,0.00012723,2]
[355292247,1741057841927,-1517.51,0.00012723,2]
[355292248,1741057841936,-500.0,0.00012723,2]
[355292250,1741057841946,-1897.43,0.00012723,2]
[355292253,1741057841956,-500.0,0.00012723,2]
[355292255,1741057841966,-1045.09,0.00012723,2]
[355292257,1741057841976,-500.0,0.00012723,2]
[355292259,1741057841985,-1000.99,0.00012723,2]
[355292261,1741057841995,-979.2,0.00012723,2]
[355292263,1741057842005,-1136.7,0.00012723,2]
[355292265,1741057842015,-1181.52,0.00012723,2]
[355292266,1741057842024,-986.14,0.00012723,2]
[355292267,1741057842034,-1042.99,0.00012723,2]
[355292269,1741057842043,-732.04,0.00012723,2]
[355292271,1741057842053,-939.0,0.00012723,2]
[355292273,1741057842062,-1685.43,0.00012723,2]
[355292275,1741057842072,-1516.04,0.00012723,2]
[355292277,1741057842081,-1209.53,0.00012723,2]
[355292279,1741057842090,-1086.84,0.00012723,2]
[355292281,1741057842099,-500.0,0.00012723,2]
[355292283,1741057842109,-2187.85,0.00012723,2]
[355292285,1741057842118,-618.87,0.00012723,2]
[355292287,1741057842127,-638.96,0.00012723,2]
[355292289,1741057842137,-638.34,0.00012723,2]
[355292291,1741057842147,-1437.43,0.00012723,2]
[355292293,1741057842156,-725.37,0.00012723,2]
[355292294,1741057842166,-861.59,0.00012723,2]
[355292296,1741057842179,-741.77,0.00012723,2]
[355292298,1741057842190,-500.0,0.00012723,2]
[355292300,1741057842199,-1406.53,0.00012723,2]
[355292302,1741057842209,-994.44,0.00012723,2]
[355292304,1741057842219,-2217.58,0.00012723,2]
[355292306,1741057842228,-538.2,0.00012723,2]
[355292308,1741057842238,-930.97,0.00012723,2]
[355292310,1741057842247,-1916.73,0.00012723,2]
[355292312,1741057842257,-1235.04,0.00012723,2]
[355292314,1741057842267,-1947.07,0.00012723,2]
[355292315,1741057842277,-500.0,0.00012724,2]
[355292317,1741057842287,-500.0,0.00012724,2]
[355292319,1741057842298,-500.0,0.00012724,2]
[355292321,1741057842308,-601.95,0.00012724,2]
[355292323,1741057842318,-636.77,0.00012724,2]
[355292325,1741057842327,-500.0,0.00012724,2]
[355292327,1741057842337,-570.44,0.00012724,2]
[355292329,1741057842347,-500.0,0.00012724,2]
[355292331,1741057842356,-934.72,0.00012724,2]
[355292333,1741057842366,-762.9,0.00012724,2]
[355292335,1741057842375,-500.0,0.00012724,2]
[355292337,1741057842385,-682.1,0.00012724,2]
[355292339,1741057842394,-500.0,0.00012724,2]
[355292341,1741057842404,-500.0,0.00012724,2]
[355292343,1741057842414,-500.0,0.00012724,2]
[355292345,1741057842424,-500.0,0.00012724,2]
[355292347,1741057842433,-512.01694048,0.00012724,2]
[355292380,1741057842627,-500.0,0.00012724,2]
[355292384,1741057842638,-500.0,0.00012724,2]
[355292387,1741057842648,-500.0,0.00012724,2]
[355292389,1741057842658,-538.84530611,0.00012724,2]
[355292391,1741057842669,-500.0,0.00012724,2]
[355292392,1741057842678,-500.0,0.00012724,2]
[355292394,1741057842687,-967.01,0.00012724,2]
[355292396,1741057842697,-681.79,0.00012724,2]
[355292398,1741057842707,-983.71,0.00012724,2]
[355292401,1741057842717,-722.22,0.00012724,2]
[355292404,1741057842726,-1084.89,0.00012724,2]
[355292406,1741057842735,-500.0,0.00012724,2]
[355292408,1741057842744,-307.25882364,0.00012724,2]
[355292410,1741057842753,-500.0,0.00012724,2]
[355292412,1741057842763,-500.0,0.00012724,2]
[355292414,1741057842773,-744.28,0.00012724,2]
[355292416,1741057842785,-1028.12,0.00012724,2]
[355292418,1741057842794,-500.0,0.00012724,2]
[355292420,1741057842803,-1010.58,0.00012724,2]
[355292422,1741057842813,-500.0,0.00012724,2]
[355292424,1741057842822,-705.05,0.00012724,2]
[355292425,1741057842832,-646.99,0.00012724,2]
[355292428,1741057842841,-500.0,0.00012724,2]
[355292429,1741057842851,-500.0,0.00012724,2]
[355292431,1741057842860,-665.94,0.00012724,2]
[355292433,1741057842869,-1196.39,0.00012724,2]
[355292435,1741057842878,-500.0,0.00012724,2]
[355292437,1741057842887,-795.11,0.00012724,2]
[355292439,1741057842896,-500.0,0.00012724,2]
[355292441,1741057842906,-464.92754423,0.00012724,2]
[355292443,1741057842915,-857.64,0.00012724,2]
[355292445,1741057842924,-1235.89,0.00012724,2]
[355292447,1741057842933,-500.0,0.00012724,2]
[355292449,1741057842942,-631.99,0.00012724,2]
[355292451,1741057842950,-500.0,0.00012724,2]
[355292453,1741057842959,-1002.23,0.00012724,2]
[355292455,1741057842968,-582.15463993,0.00012724,2]
[355292457,1741057842977,-684.18,0.00012724,2]
[355292458,1741057842987,-500.0,0.00012724,2]
[355292460,1741057842996,-500.0,0.00012724,2]
[355292462,1741057843006,-500.0,0.00012724,2]
[355292464,1741057843015,-500.0,0.00012724,2]
[355292466,1741057843025,-551.1,0.00012724,2]
[355292468,1741057843037,-689.08,0.00012724,2]
[355292470,1741057843046,-1094.3,0.00012724,2]
[355292472,1741057843056,-676.47,0.00012724,2]
[355292474,1741057843065,-500.0,0.00012724,2]
[355292476,1741057843074,-500.0,0.00012724,2]
[355292478,1741057843083,-500.0,0.00012724,2]
[355292480,1741057843092,-500.0,0.00012724,2]
[355292482,1741057843102,-653.51,0.00012724,2]
[355292484,1741057843111,-500.0,0.00012724,2]
[355292486,1741057843120,-818.73,0.00012724,2]
[355292488,1741057843129,-500.0,0.00012724,2]
[355292490,1741057843138,-500.0,0.00012724,2]
[355292492,1741057843149,-919.47,0.00012724,2]
[355292494,1741057843158,-500.0,0.00012724,2]
[355292495,1741057843168,-735.52,0.00012724,2]
[355292497,1741057843179,-810.28,0.00012724,2]
[355292499,1741057843191,-500.0,0.00012724,2]
[355292501,1741057843202,-794.76,0.00012724,2]
[355292503,1741057843212,-589.69420793,0.00012724,2]
[355292505,1741057843223,-500.0,0.00012724,2]
[355292507,1741057843232,-347.07143679,0.00012724,2]
[355292509,1741057843241,-751.2,0.00012724,2]
[355292511,1741057843250,-500.0,0.00012724,2]
[355292513,1741057843259,-500.0,0.00012724,2]
[355292515,1741057843269,-713.83,0.00012724,2]
[355292517,1741057843281,-559.78,0.00012724,2]
[355292519,1741057843297,-791.63,0.00012724,2]
[355292521,1741057843307,-500.0,0.00012724,2]
[355292524,1741057843316,-657.53,0.00012724,2]
[355292528,1741057843325,-2027.02,0.00012724,2]
[355292532,1741057843335,-990.84,0.00012724,2]
[355292535,1741057843345,-2575.68,0.00012724,2]
[355292538,1741057843356,-500.0,0.00012724,2]
[355292541,1741057843365,-2679.03,0.00012724,2]
[355292544,1741057843374,-500.0,0.00012724,2]
[355292547,1741057843385,-27872.77,0.00012724,2]
[355292550,1741057843394,-1387.6,0.00012724,2]
[355292553,1741057843404,-500.0,0.00012724,2]
[355292555,1741057843413,-624.47,0.00012724,2]
[355292558,1741057843423,-2032.14,0.00012724,2]
[355292561,1741057843432,-4056.04,0.00012724,2]
[355292563,1741057843441,-500.0,0.00012724,2]
[355292565,1741057843451,-32026.51,0.00012724,2]
[355292567,1741057843460,-1093.4,0.00012724,2]
[355292569,1741057843469,-500.0,0.00012724,2]
[355292571,1741057843478,-3835.94,0.00012724,2]
[355292573,1741057843488,-791.89,0.00012724,2]
[355292575,1741057843497,-500.0,0.00012724,2]
[355292577,1741057843506,-616.79,0.00012724,2]
[355292579,1741057843515,-1654.98,0.00012724,2]
[355292581,1741057843524,-648.16,0.00012724,2]
[355292583,1741057843534,-1821.51,0.00012724,2]
[355292585,1741057843544,-5573.34,0.00012724,2]
[355292587,1741057843553,-2727.54,0.00012724,2]
[355292589,1741057843563,-3137.05,0.00012724,2]
[355292591,1741057843573,-2451.87,0.00012724,2]
[355292593,1741057843582,-1498.56,0.00012725,2]
[355292595,1741057843592,-1271.49,0.00012725,2]
[355292597,1741057843601,-1113.33,0.00012725,2]
[355292599,1741057843610,-500.0,0.00012725,2]
[355292601,1741057843620,-1485.45,0.00012725,2]
[355292603,1741057843631,-1752.48,0.00012725,2]
[355292604,1741057843641,-988.12,0.00012725,2]
[355292606,1741057843650,-780.12,0.00012725,2]
[355292608,1741057843661,-500.0,0.00012725,2]
[355292610,1741057843676,-1580.16,0.00012725,2]
[355292612,1741057843696,-977.48,0.00012725,2]
[355292614,1741057843712,-2042.79,0.00012725,2]
[355292616,1741057843722,-1811.15,0.00012725,2]
[355292618,1741057843731,-1798.08,0.00012725,2]
[355292620,1741057843740,-1318.57,0.00012725,2]
[355292622,1741057843749,-1904.51,0.00012725,2]
[355292624,1741057843759,-1025.02,0.00012725,2]
[355292626,1741057843768,-852.8,0.00012725,2]
[355292628,1741057843777,-1234.79,0.00012725,2]
[355292630,1741057843787,-1494.89,0.00012725,2]
[355292632,1741057843796,-2092.87,0.00012725,2]
[355292634,1741057843806,-833.46,0.00012725,2]
[355292636,1741057843815,-1716.85,0.00012725,2]
[355292638,1741057843825,-1124.57,0.00012725,2]
[355292640,1741057843834,-1308.42,0.00012725,2]
[355292642,1741057843843,-551.41,0.00012725,2]
[355292644,1741057843853,-1630.48,0.00012725,2]
[355292646,1741057843862,-2081.11,0.00012725,2]
[355292648,1741057843871,-592.01,0.00012725,2]
[355292650,1741057843880,-1371.19,0.00012725,2]
[355292652,1741057843890,-1488.31,0.00012725,2]
[355292654,1741057843899,-500.0,0.00012725,2]
[355292656,1741057843911,-1097.19,0.00012725,2]
[355292658,1741057843921,-1046.16261494,0.0001274,2]
[355292660,1741057843930,-1104.33831174,0.0001274,2]
[355292661,1741057843939,-163.99175029,0.00012746,2]
[355292663,1741057843949,-159.58913298,0.00012746,2]
[355292665,1741057843958,-163.99175029,0.00012777,2]
[355292667,1741057843967,-159.58913298,0.00012777,2]
[355292669,1741057843976,-356.83115184,0.0001279,2]
[355292671,1741057843986,-163.99175029,0.00012808,2]
[355292673,1741057843995,-159.58913298,0.00012808,2]
[355292675,1741057844005,-163.99175029,0.00012838,2]
[355292677,1741057844014,-159.58913298,0.00012838,2]
[355292679,1741057844023,-163.99175029,0.00012869,2]
[355292681,1741057844034,-159.58913298,0.00012869,2]
[355292683,1741057844044,-266.60459,0.0001287,2]
[355292685,1741057844054,-2410.011,0.00012888,2]
[355292687,1741057844064,-194.10633776,0.00012888,2]
[355292689,1741057844074,-286.05611738,0.00012896,2]
[355292691,1741057844083,-286.05611738,0.00012897,2]
[355292693,1741057844092,-315.35161059,0.00012897,2]
[355292695,1741057844101,-169.05734339,0.00012897,2]
[355292697,1741057844111,-286.05611738,0.00012897,2]
[355292699,1741057844121,-2552.5807,0.000129,2]
[355292701,1741057844130,-163.99175029,0.000129,2]
[355292703,1741057844139,-159.58913298,0.000129,2]
[355292705,1741057844149,-222.72,0.00012951,2]
[355292707,1741057844158,-1012.0,0.00012962,2]
[355292709,1741057844168,-164.948,0.00012962,2]
[355292711,1741057844179,-3929.0,0.00012962,2]
[355292713,1741057844194,-504.09026719,0.00012973,2]
[355292715,1741057844204,-500.0,0.00012973,2]
[355292717,1741057844213,-176629.12290707,0.0001299,2]
[355292782,1741057844875,-500.34548739,0.0001299,2]
[355292996,1741057847240,-515.82099314,0.00012722,2]
[355292999,1741057847257,-258.3520005,0.00012722,2]
[355293002,1741057847280,-47.94700636,0.00012722,2]
[355293004,1741057847291,-462.21490364,0.00012723,2]
[355293007,1741057847304,-219.27509636,0.00012723,2]
[355293009,1741057847313,-4518.9,0.00012723,2]
[355293011,1741057847323,-647.28585233,0.00012972,2]
[355293989,1741057940832,342.24,0.00012038,2]
[355293990,1741057948984,150.030412,0.0002,120]
[355293991,1741057964974,510.5,0.00010115,2]
[355293992,1741057965413,510.5,0.00012379,2]
[355293993,1741057979753,1078.56,0.00012033,2]
[355293994,1741057986383,180.0,0.0002,120]
[355293995,1741057994019,156.78,0.00012028,2]
[355293996,1741058014310,1195.57,0.00012,2]
[355293997,1741058054078,1000.0,0.00011969,2]
[355293998,1741058099618,550.0,0.00011,2]
[355293999,1741058319310,231.9,0.00011913,2]
[355294000,1741058419057,222.72,0.00011932,2]
[355294001,1741058429663,200.0,0.00011895,2]
[355294002,1741058541668,1057.81,0.00011883,2]
[355294005,1741058626019,250.0,0.00011837,2]
[355294021,1741058784988,580.74,0.00011773,2]
[355294031,1741058881075,23900.0,0.00011771,2]
[355294034,1741058900009,-869.44,0.00012603,2]
[355294035,1741058900040,-150.0,0.00012612,2]
[355294036,1741058900073,-356.83115184,0.0001262,2]
[355294037,1741058900104,-300.0,0.00012621,2]
[355294038,1741058900135,-4963.1894,0.00012622,2]
[355294039,1741058900165,-548.6257887,0.00012622,2]
[355294040,1741058900208,-486.7960113,0.00012622,2]
[355294041,1741058900238,-942.93726664,0.00012622,2]
[355294042,1741058900269,-171.14360965,0.00012622,2]
[355294043,1741058900299,-169.17509481,0.00012622,2]
[355294044,1741058900330,-255.07831619,0.00012622,2]
[355294045,1741058900361,-293.038,0.00012623,2]
[355294046,1741058900391,-1442.7488,0.00012623,2]
[355294047,1741058900422,-1265.8183,0.00012623,2]
[355294048,1741058900459,-47.0089804,0.00012625,2]
[355294050,1741058966161,459.45,9.934e-05,2]
[355294051,1741058966452,459.45,0.00012198,2]
[355294052,1741059006499,778.27,0.00011847,2]
[355294063,1741059031975,-102.9910196,0.00012625,2]
[355294064,1741059031990,-171.1436096,0.00012653,2]
[355294065,1741059032000,-255.0783161,0.00012653,2]
[355294066,1741059032010,-171.1436096,0.00012684,2]
[355294067,1741059032019,-255.0783161,0.00012684,2]
[355294068,1741059032029,-171.1436096,0.00012715,2]
[355294069,1741059032039,-255.0783161,0.00012715,2]
[355294070,1741059032049,-150.0,0.00012719,2]
[355294071,1741059032061,-300.0,0.00012719,2]
[355294072,1741059032071,-2572.96,0.00012719,2]
[355294073,1741059032081,-250000.0,0.0001272,2]
[355294074,1741059032092,-876.58,0.00012721,2]
[355294075,1741059032102,-500.0,0.00012721,2]
[355294076,1741059032112,-256.17397922,0.00012721,2]
[355294077,1741059032121,-1034.12,0.00012721,2]
[355294078,1741059032131,-1211.08,0.00012721,2]
[355294079,1741059032142,-2536.65,0.00012721,2]
[355294080,1741059032151,-573.79,0.00012721,2]
[355294081,1741059032161,-860.22,0.00012721,2]
[355294082,1741059032171,-527.93,0.00012721,2]
[355294083,1741059032180,-500.0,0.00012721,2]
[355294084,1741059032190,-1161.99,0.00012721,2]
[355294085,1741059032200,-669.09,0.00012721,2]
[355294086,1741059032211,-908.5,0.00012721,2]
[355294087,1741059032221,-1196.9,0.00012721,2]
[355294088,1741059032232,-1329.87,0.00012721,2]
[355294089,1741059032243,-242.69872827,0.00012721,2]
[355294090,1741059032254,-595.15,0.00012721,2]
[355294091,1741059032264,-793.02,0.00012721,2]
[355294092,1741059032275,-751.93,0.00012721,2]
[355294093,1741059032285,-677.76,0.00012721,2]
[355294094,1741059032296,-761.19,0.00012721,2]
[355294095,1741059032309,-894.32,0.00012721,2]
[355294096,1741059032319,-693.89,0.00012721,2]
[355294097,1741059032329,-500.0,0.00012721,2]
[355294098,1741059032339,-1402.04,0.00012721,2]
[355294099,1741059032348,-1007.12,0.00012721,2]
[355294100,1741059032357,-853.34564571,0.00012721,2]
[355294101,1741059032537,-1298.56864929,0.00012721,2]
[355294102,1741059032546,-677.52,0.00012721,2]
[355294103,1741059032556,-592.01,0.00012721,2]
[355294104,1741059032568,-500.0,0.00012721,2]
[355294105,1741059032579,-375.40014404,0.00012721,2]
[355294106,1741059032591,-959.59985596,0.00012721,2]
[355294107,1741059032600,-562.43,0.00012721,2]
[355294108,1741059032610,-1309.22,0.00012721,2]
[355294109,1741059032619,-725.14,0.00012721,2]
[355294110,1741059032628,-1048.10468404,0.00012721,2]
[355294111,1741059032854,-286.47679996,0.00012721,2]
[355294112,1741059032864,-637.93,0.00012721,2]
[355294113,1741059032873,-64.06120004,0.00012721,2]
[355294123,1741059037819,-344.12974036,0.00012719,2]
[355294124,1741059037874,-401.616215,0.00012719,2]
[355294125,1741059037886,-94.31404464,0.00012719,2]
[355294126,1741059037896,-702.35879996,0.00012721,2]
[355294127,1741059037906,-7.6471554,0.00012721,2]
[355294128,1741059037934,-790.5128446,0.00012721,2]
[355294129,1741059037943,-538.63371435,0.00012721,2]
[355294130,1741059037955,-1127.53628565,0.00012721,2]
[355294131,1741059037965,-419.40376494,0.00012721,2]
[355294132,1741059037995,-810.31623506,0.00012721,2]
[355294133,1741059038005,-500.0,0.00012721,2]
[355294134,1741059038015,-580.91,0.00012721,2]
[355294135,1741059038024,-999.69,0.00012721,2]
[355294136,1741059038034,-150.322172,0.00012721,2]
[355294137,1741059038043,-1340.19,0.00012721,2]
[355294138,1741059038053,-1518.8,0.00012721,2]
[355294139,1741059038063,-639.42,0.00012721,2]
[355294140,1741059038072,-1166.51,0.00012721,2]
[355294141,1741059038081,-449.54159294,0.00012721,2]
[355294142,1741059038104,-267.53840706,0.00012721,2]
[355294143,1741059038113,-90.59348854,0.00012721,2]
[355294209,1741059038779,-1129.63914,0.00012721,2]
[355294359,1741059040171,-295.30737146,0.00012721,2]
[355294361,1741059040180,-1178.92,0.00012721,2]
[355294363,1741059040190,-1647.81,0.00012721,2]
[355294365,1741059040199,-728.55,0.00012721,2]
[355294367,1741059040208,-984.62,0.00012721,2]
[355294369,1741059040218,-920.65,0.00012721,2]
[355294371,1741059040227,-500.0,0.00012721,2]
[355294373,1741059040236,-1512.32,0.00012721,2]
[355294375,1741059040245,-1190.3,0.00012721,2]
[355294377,1741059040255,-509.64,0.00012721,2]
[355294379,1741059040264,-6510.24,0.00012721,2]
[355294381,1741059040273,-1323.1,0.00012721,2]
[355294383,1741059040282,-4354.06,0.00012721,2]
[355294385,1741059040292,-1725.26,0.00012721,2]
[355294387,1741059040301,-2250.18,0.00012721,2]
[355294389,1741059040310,-1698.14,0.00012721,2]
[355294391,1741059040319,-795.07,0.00012721,2]
[355294393,1741059040329,-1622.18,0.00012721,2]
[355294395,1741059040338,-5272.56,0.00012721,2]
[355294397,1741059040347,-2231.65,0.00012721,2]
[355294399,1741059040356,-602.21,0.00012721,2]
[355294401,1741059040366,-2066.72,0.00012721,2]
[355294403,1741059040375,-500.0,0.00012721,2]
[355294405,1741059040384,-1582.23,0.00012721,2]
[355294407,1741059040393,-872.99,0.00012721,2]
[355294409,1741059040402,-3269.09,0.00012721,2]
[355294411,1741059040411,-1407.63,0.00012721,2]
[355294413,1741059040421,-2065.75,0.00012721,2]
[355294415,1741059040430,-6886.66,0.00012721,2]
[355294417,1741059040440,-5525.74,0.00012721,2]
[355294419,1741059040449,-500.0,0.00012721,2]
[355294421,1741059040458,-2629.04,0.00012721,2]
[355294423,1741059040467,-2621.8,0.00012721,2]
[355294425,1741059040475,-6370.32,0.00012721,2]
[355294427,1741059040485,-1000.6,0.00012721,2]
[355294429,1741059040494,-1880.42,0.00012721,2]
[355294431,1741059040504,-500.0,0.00012721,2]
[355294433,1741059040513,-500.0,0.00012721,2]
[355294436,1741059040522,-3083.88,0.00012721,2]
[355294438,1741059040531,-701.33,0.00012721,2]
[355294440,1741059040540,-1932.04,0.00012721,2]
[355294442,1741059040550,-1430.52,0.00012721,2]
[355294444,1741059040559,-1429.06,0.00012721,2]
[355294446,1741059040569,-2416.19,0.00012721,2]
[355294448,1741059040581,-4925.72,0.00012721,2]
[355294450,1741059040590,-2282.68,0.00012721,2]
[355294452,1741059040599,-1360.97,0.00012721,2]
[355294454,1741059040608,-502.28144388,0.00012721,2]
[355294456,1741059040619,-1866.24,0.00012721,2]
[355294458,1741059040628,-513.74213284,0.00012721,2]
[355294460,1741059040637,-730.73,0.00012721,2]
[355294462,1741059040648,-1249.6,0.00012721,2]
[355294464,1741059040658,-501.34587272,0.00012721,2]
[355294466,1741059040667,-1412.07,0.00012721,2]
[355294468,1741059040676,-1524.26,0.00012721,2]
[355294469,1741059040685,-500.0,0.00012721,2]
[355294471,1741059040695,-500.0,0.00012721,2]
[355294473,1741059040704,-588.17,0.00012721,2]
[355294475,1741059040713,-1536.2,0.00012721,2]
[355294477,1741059040722,-1342.69,0.00012721,2]
[355294479,1741059040731,-2838.23,0.00012721,2]
[355294481,1741059040740,-2614.76,0.00012721,2]
[355294483,1741059040750,-3130.49,0.00012721,2]
[355294485,1741059040759,-1249.35,0.00012721,2]
[355294487,1741059040768,-2281.9,0.00012721,2]
[355294489,1741059040777,-964.96,0.00012721,2]
[355294491,1741059040786,-2654.16,0.00012721,2]
[355294493,1741059040795,-1002.72,0.00012721,2]
[355294494,1741059040804,-1048.92,0.00012721,2]
[355294495,1741059040813,-10948.44,0.00012721,2]
[355294496,1741059040822,-1964.54,0.00012721,2]
[355294497,1741059040831,-1234.86,0.00012721,2]
[355294498,1741059040839,-1452.24,0.00012721,2]
[355294499,1741059040849,-1143.62,0.00012721,2]
[355294500,1741059040858,-620.15237039,0.00012721,2]
[355294501,1741059040866,-3176.87,0.00012721,2]
[355294502,1741059040875,-2402.68,0.00012721,2]
[355294503,1741059040884,-2119.85,0.00012721,2]
[355294504,1741059040893,-1669.7,0.00012721,2]
[355294505,1741059040902,-634.05,0.00012721,2]
[355294506,1741059040910,-500.0,0.00012721,2]
[355294507,1741059040920,-1452.7,0.00012721,2]
[355294508,1741059040929,-1897.43,0.00012721,2]
[355294509,1741059040938,-1886.47,0.00012721,2]
[355294510,1741059040947,-531.06,0.00012721,2]
[355294511,1741059040956,-1231.15,0.00012721,2]
[355294512,1741059040965,-16209.89,0.00012721,2]
[355294513,1741059040974,-1063.77,0.00012721,2]
[355294514,1741059040983,-1539.0,0.00012721,2]
[355294515,1741059040993,-979.2,0.00012721,2]
[355294516,1741059041002,-1202.35,0.00012721,2]
[355294518,1741059041012,-1088.51,0.00012721,2]
[355294520,1741059041022,-1766.53,0.00012721,2]
[355294522,1741059041031,-2475.29,0.00012721,2]
[355294524,1741059041040,-1764.12,0.00012721,2]
[355294526,1741059041050,-2222.1,0.00012721,2]
[355294528,1741059041059,-2187.85,0.00012721,2]
[355294530,1741059041070,-638.96,0.00012721,2]
[355294532,1741059041079,-1719.59,0.00012721,2]
[355294534,1741059041088,-1645.02,0.00012721,2]
[355294536,1741059041097,-1155.89,0.00012721,2]
[355294538,1741059041106,-1288.88,0.00012721,2]
[355294540,1741059041115,-990.21,0.00012721,2]
[355294542,1741059041125,-741.77,0.00012721,2]
[355294544,1741059041134,-554.68,0.00012721,2]
[355294546,1741059041143,-1154.38,0.00012721,2]
[355294548,1741059041152,-1536.87,0.00012721,2]
[355294550,1741059041161,-2217.58,0.00012721,2]
[355294552,1741059041171,-1337.21,0.00012721,2]
[355294554,1741059041180,-500.0,0.00012721,2]
[355294555,1741059041190,-1958.07,0.00012721,2]
[355294557,1741059041200,-3586.92,0.00012721,2]
[355294559,1741059041209,-1479.1,0.00012721,2]
[355294561,1741059041219,-1199.41,0.00012721,2]
[355294563,1741059041229,-796.65,0.00012721,2]
[355294565,1741059041238,-1947.07,0.00012721,2]
[355294567,1741059041247,-500.0,0.00012721,2]
[355294569,1741059041256,-1469.27,0.00012721,2]
[355294571,1741059041266,-2430.95,0.00012721,2]
[355294573,1741059041275,-513.0,0.00012721,2]
[355294575,1741059041284,-1000.0,0.00012721,2]
[355294577,1741059041293,-1000.0,0.00012721,2]
[355294579,1741059041303,-158.0,0.00012721,2]
[355294581,1741059041314,-1000.0,0.00012722,2]
[355294583,1741059041323,-1017.0,0.00012722,2]
[355294585,1741059041332,-500.0,0.00012722,2]
[355294587,1741059041341,-533.02,0.00012722,2]
[355294589,1741059041350,-672.42,0.00012722,2]
[355294591,1741059041360,-540.69,0.00012722,2]
[355294593,1741059041370,-500.0,0.00012722,2]
[355294595,1741059041379,-500.0,0.00012722,2]
[355294597,1741059041387,-753.15,0.00012722,2]
[355294599,1741059041397,-500.0,0.00012722,2]
[355294601,1741059041406,-500.0,0.00012722,2]